Cogmind - Beta 12 @@@ ROGUE MODE // 2023.05.08 @ 23:57:45 Player: o8643 Result: Self-destructed Performance ------------- Evolutions (1) 500 Regions Visited (2) 400 Robots Destroyed (15) 75 Value Destroyed (402) 402 Prototype IDs (1) 20 Alien Tech Used (0) 0 Bonus (11) 11 TOTAL SCORE: 1408 Bonus ------- High Alert Combat Kills 11 Cogmind --------- Core Integrity 277/400 Matter 165/300 Energy 162/280 System Corruption 0% Temperature Cool (4) Movement Hovering (48) Location -9/Materials Parts ------- > --- POWER (1) -------- Heavy Ion Engine > --- PROPULSION (4) --- Improved Hover Unit Improved Hover Unit Improved Hover Unit Improved Hover Unit > --- UTILITY (2) ------ Weight Redist. System > --- WEAPON (2) ------- Light EM Pulse Cannon > --- INVENTORY (5) ---- Heavy Ion Engine Cooled Ion Engine ECM Suite EM Shotgun Improved EM Shotgun Peak State ------------ > --- POWER ------------ Heavy Ion Engine > --- PROPULSION ------- Improved Hover Unit Improved Hover Unit Flight Unit Flight Unit > --- UTILITY ---------- Weight Redist. System Light Armor Plating > --- WEAPON ----------- Heavy EM Pulse Gun Light EM Pulse Cannon > --- INVENTORY -------- Heavy Ion Engine Cooled Ion Engine ECM Suite EM Shotgun Improved EM Shotgun [Rating: 17] Favorites ----------- Power Heavy Ion Engine Engine Heavy Ion Engine Propulsion Flight Unit Leg Aluminum Leg Hover Unit Improved Hover Unit Flight Unit Flight Unit Utility Weight Redist. System Device Weight Redist. System Storage Small Storage Unit Protection Light Armor Plating Weapon Light EM Pulse Cannon Energy Gun Small Laser Energy Cannon Light EM Pulse Cannon Launcher Grenade Launcher Build | -11 -10 -9 ------- Run | Jun Mat Mat Slots Evolved 2 | . . 2 Power . | . . . Propulsion 2 | . . 2 Utility . | . . . Weapon . | . . . Parts Attached 52 | 5 31 16 Power 5 | 1 4 . Engine 5 | 1 4 . Core . | . . . Reactor . | . . . Propulsion 17 | 2 8 7 Treads . | . . . Leg 3 | 2 1 . Wheel . | . . . Hover 4 | . . 4 Flight 10 | . 7 3 Utility 15 | 1 11 3 Device 8 | . 8 . Storage 4 | 1 3 . Processor . | . . . Hackware . | . . . Protection 3 | . . 3 Artifact . | . . . Weapon 15 | 1 8 6 Energy Gun 9 | 1 5 3 Energy Cannon 1 | . . 1 Ballistic Gun . | . . . Ballistic Cannon . | . . . Launcher 5 | . 3 2 Special Weapon . | . . . Impact Weapon . | . . . Slashing Weapon . | . . . Piercing Weapon . | . . . Special Melee Weapon . | . . . Unidentified Prototypes 1 | . 1 . Parts Lost 5 | . 1 4 Power . | . . . Propulsion 2 | . 1 1 Utility 1 | . . 1 Weapon 2 | . . 2 Highest Loss Streak 2 | . 1 2 To Critical Strikes . | . . . Average Slot Usage (%) 89 | . 85 93 Engine 12 | . 13 11 Leg 4 | . 7 . Hover 6 | . . 15 Flight 23 | . 19 27 Device 17 | . 20 13 Storage 2 | . 3 . Protection 3 | . . 7 Energy Gun 9 | . 12 5 Energy Cannon 3 | . . 7 Launcher 5 | . 6 4 Naked Turns . | . . . Heaviest Build 19 | 12 14 19 Greatest Support 34 | 20 20 34 Greatest Overweight (x) 1 | 1 . 1 Average Overweight (x) . | . . . Largest Inventory Capacity 20 | 8 20 5 Average Capacity 5 | 7 5 5 Most Carried 7 | 3 7 5 Average Carried 4 | 1 4 4 Final Capacity 8 | 8 5 5 Final Carried 5 | 3 5 5 Class Distribution -------------------- 76% | Mutant 23% | Sprinter Dominant Class ---------------- Mutant | -10/Materials Sprinter | -9/Materials Resources | -11 -10 -9 ----------- Run | Jun Mat Mat Matter Collected 620 | 222 204 194 Remotely . | . . . Salvage Created 456 | . 257 199 Parts 33 | . 18 15 Haulers Intercepted 1 | . 1 . Recyclers Shooed . | . . . Parts Field Recycled . | . . . Retrieved Matter . | . . . Parts Self-Destructed . | . . . Prevented . | . . . Kills | -11 -10 -9 ------- Run | Jun Mat Mat Combat Hostiles Destroyed 13 | . 10 3 Guns 5 | . 5 . Cannons 2 | . . 2 AOE 6 | . 5 1 Classes Destroyed 5 | . 3 2 Hauler 1 | . 1 . Watcher 1 | . . 1 Swarmer 6 | . 6 . Grunt 4 | . 4 . Sentry 3 | . . 3 Best Kill Streak 4 | . 4 1 Combat Bots Only 4 | . 4 1 Max Kills in Single Turn 2 | . 2 1 Gunslinging . | . . . Exploded 2 | . 2 1 Melee . | . . . Uniques/NPCs Destroyed . | . . . Combat | -11 -10 -9 -------- Run | Jun Mat Mat Damage Taken 923 | . 410 513 Core 194 | . 71 123 Absorbed by Shields . | . . . Core Remaining (%) 85 | 100 71 . Volleys Fired 55 | . 36 19 Largest 2 | . 2 2 Hottest 101 | . 90 101 Shots Fired 72 | . 46 26 Gun 48 | . 42 6 Cannon 15 | . . 15 Launcher 9 | . 4 5 Special . | . . . Kinetic . | . . . Thermal 42 | . 42 . Explosive 4 | . 4 . Electromagnetic 26 | . . 26 Robot Hit Streak 9 | . 9 9 Robot Miss Streak 4 | . 4 2 Penetration Max . | . . . Secondary Targets . | . . . Shots Hit Robots 46 | . 25 21 Core Hits 25 | . 16 9 Critical Kills . | . . . Critical Parts Destroyed . | . . . Critical Strikes 1 | . 1 . Burn 1 | . 1 . Melee Attacks . | . . . Impact . | . . . Slashing . | . . . Piercing . | . . . Sneak Attacks . | . . . Combat Hostiles . | . . . Follow-up Attacks . | . . . Damage Inflicted 1079 | . 656 423 Guns 389 | . 296 93 Cannons 255 | . . 255 Explosions 435 | . 360 75 Melee . | . . . Ramming . | . . . Kinetic . | . . . Thermal 408 | . 408 . Explosive 248 | . 248 . Electromagnetic 423 | . . 423 Impact . | . . . Slashing . | . . . Piercing . | . . . Highest Corruption . | . . . Average Corruption . | . . . Corruption Purged . | . . . Corruption Blocked . | . . . Overload Shots . | . . . Overflow Damage 65 | . 65 . Projectiles . | . . . Explosions 65 | . 65 . Melee . | . . . Knockbacks . | . . . Impact . | . . . Kinetic . | . . . Secondary . | . . . Self-Inflicted Damage 75 | . 74 1 Shots 3 | . 2 1 Rammed . | . . . Targets Rammed . | . . . Kicked . | . . . Crushed . | . . . Highest Temperature 348 | . 348 243 Average Temperature 99 | . 94 102 Received Heat Transfer 426 | . 165 261 Effects 2 | . . 2 Energy Bleed 2 | . . 2 Siege Activations . | . . . Robots Corrupted . | . . . Combat Hostiles . | . . . Parts Fried 5 | . . 5 Impact Corruptions . | . . . Robots Melted . | . . . Combat Hostiles . | . . . Parts Melted 2 | . 2 . Heat Transferred 894 | . 894 . Parts Sabotaged . | . . . Parts Stolen . | . . . Parts Stripped . | . . . Power Chain Reactions . | . . . Missiles Intercepted . | . . . Alert | -11 -10 -9 ------- Run | Jun Mat Mat Peak Influence 590 | . 354 590 Initial 143 | . . 143 Average 220 | . 170 320 Maximum Alert Level 2 | . 1 2 Low Security (%) 58 | 100 71 34 Level 1 31 | . 28 39 Level 2 10 | . . 26 Level 3 . | . . . Level 4 . | . . . Level 5 . | . . . High Security . | . . . Max Security . | . . . Squads Dispatched 6 | . 3 3 Investigation 2 | . 2 . Extermination . | . . . Reinforcement 4 | . 1 3 Assault . | . . . Garrison . | . . . Intercept . | . . . Searches Triggered . | . . . Construction Impeded . | . . . Haulers Reinforced . | . . . Active Scanning Responses . | . . . Cargo Convoy Interrupts . | . . . Stealth | -11 -10 -9 --------- Run | Jun Mat Mat Distress Signals 1 | . 1 . Communications Jammed . | . . . Distress Signals . | . . . Times Spotted 50 | . 24 26 Peak Tracking Total 10 | . 5 10 Tactical Retreats 9 | . 2 7 Traps | -11 -10 -9 ------- Run | Jun Mat Mat Traps Triggered 3 | . 3 . Indirectly . | . . . Trap Hack Attempts . | . . . Triggered . | . . . Disarmed . | . . . Reprogrammed 5 | . 5 . Reused . | . . . Traps Extracted . | . . . Installed . | . . . Triggered . | . . . Machines | -11 -10 -9 ---------- Run | Jun Mat Mat Machines Disabled 4 | . 3 1 Max in Single Turn 3 | . 3 1 Machines Repaired . | . . . Machines Sabotaged . | . . . Overloaded Fab Kills . | . . . Hacking | -11 -10 -9 --------- Run | Jun Mat Mat Machines Accessed 13 | . 10 3 Terminals 11 | . 8 3 Fabricators . | . . . Repair Stations 1 | . 1 . Recycling Units 1 | . 1 . Scanalyzers . | . . . Garrison Access . | . . . Total Hacks 36 | . 28 8 Successful 19 | . 16 3 Failed 17 | . 12 5 Catastrophic 1 | . 1 . Database Lockouts . | . . . Manual 19 | . 15 4 Terminals 30 | . 22 8 Fabricators . | . . . Repair Stations 3 | . 3 . Recycling Units 3 | . 3 . Scanalyzers . | . . . Garrison Access . | . . . Terminal Hacks 7 | . 5 2 Robot Analysis 1 | . 1 . Alert Level 2 | . 1 1 Reprogram Traps 1 | . 1 . Recall Investigation 1 | . 1 . Zone Layout 2 | . 1 1 Fabricator Hacks . | . . . Repair Station Hacks 2 | . 2 . Scan Component 1 | . 1 . Refit 1 | . 1 . Recycling Unit Hacks 2 | . 2 . Process 1 | . 1 . Report Inventory 1 | . 1 . Scanalyzer . | . . . Garrison Access Hacks . | . . . Unauthorized Hacks 8 | . 7 1 Terminals 8 | . 7 1 Track 1 | . 1 . Botnet 5 | . 4 1 Detonate 2 | . 2 . Fabricators . | . . . Repair Stations . | . . . Recycling Units . | . . . Scanalyzers . | . . . Garrison Access . | . . . Data Cores Recovered . | . . . Used . | . . . Hacking Detections 13 | . 10 3 Full Trace Events 4 | . 3 1 Feedback Events . | . . . Feedback Blocked . | . . . Robot Schematics Acquired . | . . . Robots Built . | . . . Authchips . | . . . Time . | . . . Total Robot Build Rating . | . . . Part Schematics Acquired . | . . . Parts Built . | . . . Authchips . | . . . Time . | . . . Total Part Build Rating . | . . . Parts Repaired . | . . . Time . | . . . Parts Recycled . | . . . Recycled Matter 25 | . 25 . Retrieved Matter . | . . . Retrieved Components . | . . . Parts Scanalyzed . | . . . Part Schematics Acquired . | . . . Parts Damaged . | . . . Bothacking | -11 -10 -9 ------------ Run | Jun Mat Mat Used RIF Installer . | . . . Robots Hacked . | . . . Non-combat . | . . . Combat . | . . . Robot Hacks Applied . | . . . Relay Couplers Released . | . . . Fabnet Peak Effective % . | . . . Robots Rewired . | . . . Allies Hacked . | . . . Hacks Repelled . | . . . Allies | -11 -10 -9 -------- Run | Jun Mat Mat Total Allies . | . . . Largest Group . | . . . Highest-Rated Group . | . . . Highest-Rated Ally . | . . . Total Orders . | . . . Ally Attacks . | . . . Total Damage . | . . . Kills . | . . . Allies Corrupted . | . . . Allies Melted . | . . . Intel | -11 -10 -9 ------- Run | Jun Mat Mat Robot Analysis Total 1 | . 1 . Derelict Logs Recovered . | . . . Drone Launches . | . . . Drone Recoveries . | . . . Exploration | -11 -10 -9 ------------- Run | Jun Mat Mat Turns Passed 1004 | 64 536 404 Spaces Moved 1611 | 49 861 701 Core 14 | 13 . 1 Treads . | . . . Legs 111 | 36 75 . Wheels . | . . . Hover 247 | . . 247 Flight 1239 | . 786 453 Fastest Speed 31 | 50 37 31 Average Speed 43 | 111 44 37 Slowest Speed 120 | 120 120 120 Overloaded Moves . | . . . Propulsion Burnouts . | . . . Robots Hopped 18 | . 9 9 Cave-ins Triggered . | . . . Exploration Rate (%) 48 | 5 97 42 Regions Visited 2 Branch Regions . Pre-discovered Areas . | . . . Known Exits Taken . | . . . Unknown Exits Taken 2 | 1 1 . Scrap Searched . | . . . Spaces Dug . | . . . Terrain Destroyed 94 | . 94 . Melee . | . . . Projectile . | . . . AOE 94 | . 94 . Terrain Rammed . | . . . Walls Destroyed . | . . . Machines Disabled . | . . . Actions | -11 -10 -9 --------- Run | Jun Mat Mat Total 1824 | 56 960 808 Wait 64 | . 4 60 Move 1575 | 48 842 685 Hop 16 | . 9 7 Pick Up 25 | 3 14 8 Fast Attach 24 | 5 12 7 Attach 10 | . 7 3 Detach 10 | . 9 1 Swap 18 | . 12 6 Drop 27 | . 15 12 Fire 55 | . 36 19 Melee . | . . . Ram . | . . . Kick . | . . . Crush . | . . . Escape Stasis . | . . . Rewire . | . . . Trap . | . . . Miscellaneous . | . . . Route ------- -11/Junkyard -10/Materials (discovered 5 exits: *Mat x3 / [*Min x2]) -9/Materials (discovered 1 exit: [*Mat]) History --------- Turn | Location | Event 16 | -11/Junkyard | Discovered new exit (range 14) 65 | -11/Junkyard | Entered Materials 266 | -10/Materials | Discovered new exit (range 4) 324 | -10/Materials | Build established: Mutant 404 | -10/Materials | Discovered new exit (range 4) 412 | -10/Materials | Discovered new exit (range 14) 461 | -10/Materials | Discovered new exit (range 8) 477 | -10/Materials | Discovered new exit (range 10) 601 | -10/Materials | Entered another Materials area 601 | -9/Materials | Evolved 2 slots: Propulsion x2 774 | -9/Materials | Discovered new exit (range 14) 1005 | -9/Materials | Self-destructed Last Messages --------------- 00918_ Connecting with Terminal... >>Alert(Check) Current Alert Level: 2-K 00918_ O-16 Technician: "IFF HANDSHAKE FAILED. SECURING TERMINAL." 00921_ K-01 Serf collects debris. 00922_ O-16 Technician uses terminal to summon reinforcements. 00922_ ALERT: Hostiles spotted, dispatching reinforcements to Terminal M012. 00922_ O-16 Technician locks terminal. 00925_ K-01 Serf collects debris. 00930_ Y-45 Defender shuts down. 00930_ K-01 Serf collects debris. 00936_ K-01 Serf cleans the Terminal. 00952_ Lgt. Armor Plating destroyed. 00955_ Critical hit (Burn: +37). 00958_ Y-45 Defender destroyed. 00961_ Acquired 58 matter. 00975_ U-05 Engineer lays Concrete. 00977_ T-07 Excavator is excavating. 00997_ K-01 Serf cleans the Terminal. Map ----- +----------------------------------------------------+ | ?????????# #????# #???????????????????? | | ???#######+###?### ###?????????????????? | | ???# #?# #?????????????????? | | ???# ! #?# #?????????????????? | | ???# #?# " #?????????????????? | | ???# """ """ #?# "T #?????????????????? | | ???# """ """ #?# #?????????????????? | | ???# """ """ #?# #?????????????????? | | ???# """ """ #?### ####?????????????????? | | ???# == [[#???# #????????????????????? | | ???########!##???# #????????????????????? | | ??????????###????# #????????????????????? | | ?????????????????# #????????????????????? | | ?????????????????# #????????????????????? | | ?????????????#####+#############????????? | | ?????????????# # #????????? | | ?????????????# # #????????? | | ?????????????# # #????????? | | ?????????????# # """ #????????? | | ?????????????# # """"" #????????? | | ?????????????# # """"" #????????? | | ?????????????# # """"" #????????? | | ?????????????# # """ #????????? | | ?????????????# # #????????? | | ?????????????####+######+################ | | ?????????????# @ | | ????########## < | | ????# # | | ????# T ## ######### ##########/## | | ????# ## #???????# #?????# | | ????# ## #???????# #?????# | | ????# ## #???????# #?????# == ! | | ????# """ ## #???????# #?????# == | | ????# """ ## g#???????# #?????# = | | ????# """ ##g #???????# #?????# | | ????# ##o #???????# #?????## ###+ | | ????#######+###g #???????# #??????##??## | | ?????????# w ######??# #???????????# | | ?????????# ### #??# #???????????# | | ########## #?# #??# #???????????# | | # # #?###### #??# ####????????# | | # [ # ######?# #??# !##???????? | | # # # ### ##?# !#???????? | | # # + !## ### !#???????? | | # + # [+ !#???????? | | # !![! # # =## !#?###???? | | # ![ # # ## ### ## !##?# ?""" | | # ![[ # # ### ##?# #####??# """" | | # # + #?# ####+######?# """" | | ########## # #?# # #?# """" | +----------------------------------------------------+ Best States ------------- Heat Dissipation 28 Energy Generation 14 Energy Capacity 280 Matter Stores 300 Matter Capacity 300 Sight Range 16 Terrain Scan Range 14 Terrain Scan Density 10 ECM Strength 1 Additional Mass Support 6 Armor Coverage 150 Evasion (%) 63 Item Schematics ----------------- None Robot Schematics ------------------ None Fabricated ------------ Nothing Alien Tech Used ----------------- None Achievements -------------- None Challenges ------------ None Game ------ Seed ChainPhaseModule Manual? 0 Play Time 00:31:51 Cumulative 27.2 hours Start 2023.05.08 @ 23:31:02 End 2023.05.08 @ 23:57:45 Sessions 1 Manual Loads 0 Difficulty Rogue Special Mode None Game No. 38 Rogue 38 Adventurer 0 Explorer 0 Win Type - Total 0 Types 0/0/0/0/0/0/0/0/0 Lore% 14 Gallery% 27 Achievement% 20 Wizard Run 0 Options --------- ASCII 0 Keyboard 1 Movement Numpad Keybinds 0 Fullscreen 1 Font 18/X11Bold Map View 76x50 Tactical HUD 1 Map Filters NONE Filters NONE Steam 1 RUN: 330481b0-6169-466b-9d22-4a3045c0588e